fUST/lending_fUST_20250920
["ID","MTS","AMOUNT","RATE_DAILY","PERIOD"]
[386546032,1758376926549,-300.0,0.00020684,2]
[386546033,1758376928823,545.99839977,0.00020682,2]
[386546034,1758376929529,2912.7157289,0.00019749,2]
[386546035,1758376932541,480.0,0.00020683,2]
[386546036,1758376938963,1200.0,0.00020684,2]
[386546037,1758376939738,480.0,0.00020682,2]
[386546038,1758376941295,680.48,0.00020683,2]
[386546039,1758376941837,480.0,0.00020682,2]
[386546040,1758376942677,486.31159326,0.00020682,2]
[386546041,1758376947045,127.72427807,0.0002,2]
[386546042,1758376947112,84.67594145,0.0002,2]
[386546043,1758376947249,480.0,0.00020682,2]
[386546044,1758376950467,480.0,0.00020683,2]
[386546045,1758376954724,480.0,0.00020682,2]
[386546046,1758376955692,480.0,0.00020682,2]
[386546047,1758376956802,480.0,0.00020682,2]
[386546048,1758376957825,480.0,0.00020682,2]
[386546049,1758376958952,480.0,0.00020682,2]
[386546050,1758376959427,480.0,0.00020682,2]
[386546051,1758376966493,555.56,0.00020683,2]
[386546052,1758376966560,480.0,0.00020682,2]
[386546053,1758376970771,158.0,8e-07,2]
[386546054,1758376972612,158.0,8e-07,2]
[386546055,1758376973772,158.0,8e-07,2]
[386546056,1758376973945,480.0,0.00020682,2]
[386546057,1758376974827,158.0,8e-07,2]
[386546058,1758376975868,158.0,8e-07,2]
[386546059,1758376976743,480.0,0.00020682,2]
[386546060,1758376976912,158.0,8e-07,2]
[386546061,1758376978819,480.0,0.00020682,2]
[386546062,1758376981312,204.39193663,0.00020584,2]
[386546063,1758376983775,300.0,0.00020684,2]
[386546064,1758376984017,1755.49,0.00020682,2]
[386546065,1758376985062,-2998.67212192,0.00020685,2]
[386546066,1758376985164,-10000.01,0.00020685,2]
[386546067,1758376985534,-10000.01,0.00020685,2]
[386546068,1758376985771,-10000.01,0.00020685,2]
[386546069,1758376985993,-10000.01,0.00020685,2]
[386546070,1758376986074,391.89212192,0.00020683,2]
[386546071,1758376986146,90.83473748,0.00020683,2]
[386546072,1758376986245,-9517.2831406,0.00020685,2]
[386546073,1758376986539,-10000.01,0.00020685,2]
[386546074,1758376986739,-10000.01,0.00020685,2]
[386546075,1758376986953,-10000.01,0.00020685,2]
[386546076,1758377006273,651.97,0.00019309,2]
[386546077,1758377006772,1303.93,0.00020228,2]
[386546079,1758377025568,1043.1036394,0.00019709,2]
[386546080,1758377047349,1565.53668284,0.000199,2]
[386546081,1758377053968,213.8418945,0.00019684,2]
[386546082,1758377066256,5221.62778326,0.00019684,2]
[386546083,1758377066322,10000.01,0.00019684,2]
[386546084,1758377066388,10000.01,0.00019684,2]
[386546085,1758377066455,5243.01114144,0.00019684,2]
[386546086,1758377091489,4756.99885856,0.000205,2]
[386546087,1758377091556,10000.01,0.000205,2]
[386546088,1758377091622,10000.01,0.000205,2]
[386546089,1758377091687,10000.01,0.000205,2]
[386546090,1758377091754,10000.01,0.000205,2]
[386546091,1758377091821,10000.01,0.000205,2]
[386546092,1758377091887,10000.01,0.000205,2]
[386546093,1758377091951,10000.01,0.000205,2]
[386546094,1758377092013,10000.01,0.000205,2]
[386546095,1758377092079,10000.01,0.000205,2]
[386546096,1758377092113,16181.42228689,0.000205,2]
[386546097,1758377092223,681.47,0.00019206,2]
[386546098,1758377092685,1362.93,0.0002012,2]
[386546099,1758377103016,10000.01,0.00019683,2]
[386546100,1758377103098,10000.01,0.00019683,2]
[386546101,1758377103172,10000.01,0.00019683,2]
[386546102,1758377103247,9542.2597318,0.00019683,2]
[386546106,1758377121874,200.27710604,0.00019762,2]
[386546112,1758377129882,257.47316216,0.00019681,2]
[386546113,1758377129952,408.52683784,0.00019681,2]
[386546124,1758377176447,720.69,0.00019247,2]
[386546125,1758377176998,1441.39,0.00020163,2]
[386546126,1758377183144,7429.40316216,0.00019682,2]
[386546127,1758377183213,9391.06431664,0.00019682,2]
[386546128,1758377189692,166.657768,0.00019839,2]
[386546129,1758377189862,166.657768,0.00019839,120]
[386546130,1758377225268,442.28791536,0.00019749,2]
[386546131,1758377225334,66.12735941,0.00019749,2]
[386546132,1758377235266,1629.38721361,0.000199,2]
[386546133,1758377240120,-173.22991494,0.00020585,2]
[386546134,1758377240142,-224.00725617,0.00020585,2]
[386546135,1758377244557,2280.432424,0.00019683,2]
[386546162,1758377262676,734.3,0.00019249,2]
[386546166,1758377263103,1468.6,0.00020165,2]
[386546191,1758377285836,250.0,0.00019406,2]
[386546192,1758377289349,3571.16300298,0.00019681,2]
[386546193,1758377289417,529.17990642,0.00019681,2]
[386546194,1758377311310,151.86146756,0.0002,2]
[386546195,1758377312987,727.79979733,0.00019749,2]
[386546196,1758377314680,304.49848534,0.0002052,2]
[386546197,1758377331165,8286.67034335,0.00019838,2]
[386546198,1758377331232,10000.01,0.00019838,2]
[386546199,1758377331296,329.88214505,0.00019838,2]
[386546209,1758377337356,167.084567,9.84e-05,2]
[386546210,1758377337570,167.084567,0.0001312,2]
[386546211,1758377337797,167.084567,0.00016401,2]
[386546212,1758377337998,167.084567,0.00019681,2]
[386546213,1758377347538,706.26,0.0001925,2]
[386546214,1758377348244,1412.53,0.00020167,2]
[386546215,1758377355263,1374.2025966,0.0001968,2]
[386546216,1758377367074,-470.4,0.00020579,2]
[386546218,1758377393602,683.298623,0.00019967,2]
[386546219,1758377393982,870.19081006,0.00020055,2]
[386546220,1758377394275,435.09540503,0.00020059,2]
[386546221,1758377399837,1000.0,0.00019679,2]
[386546223,1758377426485,1609.81053212,0.000199,2]
[386546258,1758377432260,-168.0,0.00020546,2]
[386546259,1758377432271,-45.55615943,0.00020579,2]
[386546260,1758377432281,-1200.0,0.00020673,2]
[386546262,1758377432290,-281.0,0.00020674,2]
[386546263,1758377432300,-300.0,0.00020674,2]
[386546265,1758377432309,-257.0,0.00020674,2]
[386546268,1758377432319,-300.0,0.00020674,2]
[386546272,1758377432328,-2051.41,0.00020675,3]
[386546276,1758377432337,-1025.7,0.00020675,3]
[386546279,1758377432347,-512.85,0.00020675,3]
[386546281,1758377432356,-256.43,0.00020675,3]
[386546283,1758377432365,-769.31,0.00020675,3]
[386546285,1758377432374,-323.08201128,0.00020679,2]
[386546287,1758377432383,-1200.0,0.00020679,2]
[386546289,1758377432393,-480.0,0.00020679,2]
[386546291,1758377432402,-480.0,0.00020679,2]
[386546293,1758377432411,-480.0,0.00020679,2]
[386546295,1758377432421,-1181.7,0.00020679,2]
[386546297,1758377432430,-500.0,0.00020679,2]
[386546299,1758377432439,-500.0,0.00020679,2]
[386546301,1758377432449,-500.0,0.00020679,2]
[386546303,1758377432461,-500.0,0.00020679,2]
[386546305,1758377432471,-500.0,0.00020679,2]
[386546307,1758377432480,-500.0,0.00020679,2]
[386546309,1758377432491,-500.0,0.00020679,2]
[386546311,1758377432500,-500.0,0.00020679,2]
[386546313,1758377432509,-500.0,0.00020679,2]
[386546315,1758377432519,-500.0,0.00020679,2]
[386546317,1758377432528,-500.0,0.00020679,2]
[386546319,1758377432538,-500.0,0.00020679,2]
[386546320,1758377432547,-500.0,0.00020679,2]
[386546322,1758377432556,-500.0,0.00020679,2]
[386546324,1758377432566,-500.0,0.00020679,2]
[386546326,1758377432575,-476.49800445,0.00020679,2]
[386546328,1758377432584,-500.0,0.00020679,2]
[386546330,1758377432593,-536.30970407,0.00020679,2]
[386546332,1758377432603,-500.0,0.00020679,2]
[386546334,1758377432612,-340.84875115,0.00020679,2]
[386546336,1758377432622,-500.0,0.00020679,2]
[386546338,1758377432631,-348.6169989,0.00020679,2]
[386546340,1758377432641,-500.0,0.00020679,2]
[386546342,1758377432651,-500.0,0.00020679,2]
[386546344,1758377432660,-500.0,0.00020679,2]
[386546346,1758377432670,-491.07762137,0.00020679,2]
[386546348,1758377432680,-500.0,0.00020679,2]
[386546350,1758377432690,-500.0,0.00020679,2]
[386546352,1758377432699,-500.0,0.00020679,2]
[386546354,1758377432709,-500.0,0.00020679,2]
[386546356,1758377432719,-394.35038442,0.00020679,2]
[386546358,1758377432728,-500.0,0.00020679,2]
[386546360,1758377432737,-500.0,0.00020679,2]
[386546362,1758377432751,-500.0,0.00020679,2]
[386546364,1758377432760,-500.0,0.00020679,2]
[386546366,1758377432770,-500.0,0.00020679,2]
[386546368,1758377432779,-500.0,0.00020679,2]
[386546370,1758377432788,-500.0,0.00020679,2]
[386546372,1758377432798,-500.0,0.00020679,2]
[386546374,1758377432807,-500.0,0.00020679,2]
[386546376,1758377432817,-500.0,0.00020679,2]
[386546378,1758377432826,-500.0,0.00020679,2]
[386546380,1758377432836,-500.0,0.00020679,2]
[386546382,1758377432845,-500.0,0.00020679,2]
[386546384,1758377432854,-500.0,0.00020679,2]
[386546386,1758377432864,-500.0,0.00020679,2]
[386546387,1758377432873,-500.0,0.00020679,2]
[386546389,1758377432883,-500.0,0.00020679,2]
[386546391,1758377432892,-500.0,0.00020679,2]
[386546393,1758377432901,-500.0,0.00020679,2]
[386546395,1758377432911,-500.0,0.00020682,2]
[386546397,1758377432920,-480.0,0.00020682,2]
[386546399,1758377432930,-480.0,0.00020682,2]
[386546401,1758377432939,-484.21987197,0.00020682,2]
[386546403,1758377432948,-480.0,0.00020682,2]
[386546405,1758377432957,-483.67266671,0.00020682,2]
[386546407,1758377432966,-18357.93803461,0.00020682,2]
[386546409,1758377432976,-480.0,0.00020682,2]
[386546411,1758377432985,-483.57598505,0.00020682,2]
[386546413,1758377432994,-480.0,0.00020682,2]
[386546415,1758377433003,-486.56790735,0.00020682,2]
[386546418,1758377433118,-500.0,0.00020682,2]
[386546419,1758377433128,-484.0323542,0.00020682,2]
[386546421,1758377433139,-500.0,0.00020682,2]
[386546423,1758377433149,-480.0,0.00020682,2]
[386546425,1758377433159,-480.0,0.00020682,2]
[386546426,1758377433169,-480.0,0.00020682,2]
[386546428,1758377433179,-550.81710965,0.00020682,2]
[386546430,1758377433189,-480.0,0.00020682,2]
[386546432,1758377433199,-480.0,0.00020682,2]
[386546434,1758377433209,-480.0,0.00020682,2]
[386546436,1758377433219,-487.41948201,0.00020682,2]
[386546438,1758377433230,-480.0,0.00020682,2]
[386546441,1758377433240,-480.0,0.00020682,2]
[386546442,1758377433250,-480.0,0.00020682,2]
[386546445,1758377433263,-480.0,0.00020682,2]
[386546446,1758377433273,-480.0,0.00020682,2]
[386546449,1758377433283,-482.38509527,0.00020682,2]
[386546450,1758377433293,-486.11792626,0.00020682,2]
[386546452,1758377433303,-480.0,0.00020682,2]
[386546455,1758377433313,-314.17035389,0.00020682,2]
[386546456,1758377433323,-496.88863565,0.00020682,2]
[386546458,1758377433333,-480.0,0.00020682,2]
[386546460,1758377433342,-516.88937133,0.00020682,2]
[386546462,1758377433352,-480.0,0.00020682,2]
[386546464,1758377433362,-483.01176286,0.00020682,2]
[386546466,1758377433372,-480.0,0.00020682,2]
[386546468,1758377433381,-480.0,0.00020682,2]
[386546470,1758377433391,-800.36,0.00020682,2]
[386546473,1758377433401,-480.0,0.00020682,2]
[386546474,1758377433410,-480.0,0.00020682,2]
[386546476,1758377433420,-480.0,0.00020682,2]
[386546478,1758377433430,-600.10893844,0.00020682,2]
[386546479,1758377433439,-386.23740906,0.00020682,2]
[386546480,1758377433449,-274.01545555,0.00020682,2]
[386546481,1758377433459,-480.0,0.00020682,2]
[386546482,1758377433468,-480.0,0.00020682,2]
[386546483,1758377433478,-480.0,0.00020682,2]
[386546484,1758377433487,-480.0,0.00020682,2]
[386546485,1758377433497,-197.71,0.00020682,2]
[386546486,1758377433506,-480.0,0.00020682,2]
[386546487,1758377433516,-480.0,0.00020682,2]
[386546488,1758377433525,-480.0,0.00020682,2]
[386546489,1758377433535,-480.0,0.00020682,2]
[386546490,1758377433545,-482.3306823,0.00020682,2]
[386546491,1758377433554,-480.0,0.00020682,2]
[386546492,1758377433563,-480.0,0.00020682,2]
[386546493,1758377433572,-480.0,0.00020682,2]
[386546494,1758377433581,-518.73,0.00020682,2]
[386546495,1758377433590,-483.82998632,0.00020682,2]
[386546496,1758377433600,-482.63463252,0.00020682,2]
[386546497,1758377433609,-480.0,0.00020682,2]
[386546498,1758377433619,-480.0,0.00020682,2]
[386546499,1758377433629,-480.0,0.00020682,2]
[386546500,1758377433638,-515.91,0.00020682,2]
[386546501,1758377433648,-484.5359706,0.00020682,2]
[386546502,1758377433657,-480.0,0.00020682,2]
[386546503,1758377433666,-1345.87,0.00020682,2]
[386546504,1758377433676,-480.0,0.00020682,2]
[386546505,1758377433685,-483.58890845,0.00020682,2]
[386546506,1758377433695,-483.67132997,0.00020682,2]
[386546507,1758377433704,-248.67274811,0.00020682,2]
[386546508,1758377433713,-480.0,0.00020682,2]
[386546509,1758377433723,-480.0,0.00020682,2]
[386546510,1758377433733,-480.0,0.00020682,2]
[386546511,1758377433743,-480.0,0.00020682,2]
[386546512,1758377433754,-480.0,0.00020682,2]
[386546513,1758377433763,-480.0,0.00020682,2]
[386546514,1758377433774,-481.67563103,0.00020682,2]
[386546515,1758377433784,-269.04655275,0.00020682,2]
[386546516,1758377433794,-480.0,0.00020682,2]
[386546517,1758377433804,-480.0,0.00020682,2]
[386546518,1758377433814,-480.0,0.00020682,2]
[386546519,1758377433825,-172.52,0.00020682,2]
[386546520,1758377433834,-484.08572984,0.00020682,2]
[386546521,1758377433843,-480.0,0.00020682,2]
[386546522,1758377433853,-484.73909929,0.00020682,2]
[386546523,1758377433872,-480.0,0.00020682,2]
[386546524,1758377433882,-480.0,0.00020682,2]
[386546525,1758377433892,-480.0,0.00020682,2]
[386546526,1758377433901,-485.73466944,0.00020682,2]
[386546527,1758377433910,-485.05498342,0.00020682,2]
[386546528,1758377433920,-480.0,0.00020682,2]
[386546529,1758377433930,-480.0,0.00020682,2]
[386546530,1758377433939,-480.0,0.00020682,2]
[386546531,1758377433948,-480.0,0.00020682,2]
[386546532,1758377433958,-480.0,0.00020682,2]
[386546533,1758377433978,-463.72304258,0.00020682,2]
[386546534,1758377433988,-1431.27,0.00020682,2]
[386546535,1758377433998,-480.0,0.00020682,2]
[386546536,1758377434008,-480.0,0.00020682,2]
[386546537,1758377434018,-480.0,0.00020682,2]
[386546538,1758377434028,-480.0,0.00020682,2]
[386546539,1758377434038,-333.03780366,0.00020682,2]
[386546540,1758377434048,-480.0,0.00020682,2]
[386546541,1758377434058,-408.37953931,0.00020682,2]
[386546542,1758377434068,-484.24265629,0.00020682,2]
[386546543,1758377434078,-195.44348328,0.00020682,2]
[386546544,1758377434087,-480.0,0.00020682,2]
[386546545,1758377434098,-480.0,0.00020682,2]
[386546546,1758377434108,-480.0,0.00020682,2]
[386546547,1758377434118,-480.0,0.00020682,2]
[386546548,1758377434128,-480.0,0.00020682,2]
[386546549,1758377434139,-480.0,0.00020682,2]
[386546550,1758377434149,-480.0,0.00020682,2]
[386546551,1758377434159,-480.0,0.00020682,2]
[386546552,1758377434170,-480.0,0.00020682,2]
[386546553,1758377434180,-460.0,0.00020683,2]
[386546554,1758377434190,-2843.08,0.00020683,2]
[386546555,1758377434200,-480.0,0.00020683,2]
[386546556,1758377434211,-1478.32,0.00020683,2]
[386546557,1758377434221,-480.0,0.00020683,2]
[386546558,1758377434231,-2503.97,0.00020683,2]
[386546559,1758377434242,-480.0,0.00020684,2]
[386546560,1758377434252,-1682.34,0.00020684,2]
[386546561,1758377434262,-480.0,0.00020684,2]
[386546562,1758377434272,-480.0,0.00020684,2]
[386546563,1758377434281,-480.0,0.00020684,2]
[386546564,1758377434292,-1204.55,0.00020684,2]
[386546565,1758377434302,-480.0,0.00020684,2]
[386546566,1758377434313,-1450.12,0.00020684,2]
[386546567,1758377434323,-1033.38,0.00020684,2]
[386546568,1758377434333,-480.0,0.00020684,2]
[386546569,1758377434343,-480.0,0.00020684,2]
[386546570,1758377434354,-2290.97,0.00020684,2]
[386546571,1758377434364,-480.0,0.00020684,2]
[386546572,1758377434374,-480.0,0.00020684,2]
[386546573,1758377434384,-1184.71,0.00020684,2]
[386546574,1758377434394,-521.58,0.00020684,2]
[386546575,1758377434404,-480.0,0.00020684,2]
[386546576,1758377434413,-480.0,0.00020684,2]
[386546577,1758377434424,-2804.82,0.00020684,2]
[386546578,1758377434434,-480.0,0.00020684,2]
[386546579,1758377434444,-672.13,0.00020684,2]
[386546580,1758377434454,-480.0,0.00020684,2]
[386546581,1758377434464,-480.0,0.00020684,2]
[386546582,1758377434473,-480.0,0.00020684,2]
[386546583,1758377434482,-2230.166744,0.00020684,2]
[386546584,1758377434492,-480.0,0.00020684,2]
[386546585,1758377434501,-168084.08562982,0.00020685,2]
[386546586,1758377434517,-4999.493403,0.00020685,2]
[386546587,1758377434538,-1200.0,0.00020685,2]
[386546588,1758377434659,679.3,0.00019249,2]
[386546589,1758377434771,231.10162014,0.00020166,2]
[386546590,1758377434850,1127.49837986,0.00020166,2]
[386546605,1758377437751,-480.0,0.00020682,2]
[386546606,1758377437761,-480.0,0.00020682,2]
[386546607,1758377437771,-480.0,0.00020682,2]
[386546608,1758377437780,-480.0,0.00020683,2]
[386546609,1758377437790,-165.29456062,0.00020685,2]
[386546610,1758377437804,-2612.68312235,0.00020685,2]
[386546611,1758377437815,-746.61058539,0.00020685,2]
[386546612,1758377437828,-13882.44963687,0.00020685,2]
[386546613,1758377437841,-3377.33167284,0.00020685,2]
[386546614,1758377437873,-5396.15961311,0.00020685,2]
[386546638,1758377439883,-173.22991493,0.00020585,2]
[386546640,1758377439893,-480.0,0.00020682,2]
[386546642,1758377439903,-8964.92566149,0.00020685,2]
[386546644,1758377439914,-29688.90871017,0.00020685,2]
[386546664,1758377440180,-3012.17893307,0.00020685,2]
[386546665,1758377440190,-500.0,0.00020685,2]
[386546666,1758377440199,-480.0,0.00020685,2]
[386546667,1758377440209,-485.73007938,0.00020685,2]
[386546668,1758377440219,-480.0,0.00020685,2]
[386546669,1758377440228,-480.0,0.00020685,2]
[386546670,1758377440237,-5355.45,0.00020685,2]
[386546671,1758377440247,-899.63,0.00020685,2]
[386546672,1758377440256,-1664.15,0.00020685,2]
[386546673,1758377440266,-453.71769147,0.000207,2]
[386546674,1758377440275,-220.5030469,0.00020766,2]
[386546675,1758377440285,-431.83953464,0.00020773,2]
[386546676,1758377440294,-500.0,0.00020773,2]
[386546677,1758377440305,-500.0,0.00020773,2]
[386546678,1758377440314,-500.85175213,0.00020773,2]
[386546679,1758377440324,-500.0,0.00020773,2]
[386546680,1758377440334,-500.0,0.00020773,2]
[386546681,1758377440344,-500.0,0.00020773,2]
[386546682,1758377440354,-503.11710688,0.00020773,2]
[386546683,1758377440365,-500.0,0.00020773,2]
[386546685,1758377440374,-500.0,0.00020773,2]
[386546686,1758377440384,-500.0,0.00020773,2]
[386546687,1758377440394,-500.0,0.00020773,2]
[386546689,1758377440404,-301.39116674,0.00020773,2]
[386546691,1758377440413,-500.0,0.00020773,2]
[386546693,1758377440423,-500.0,0.00020773,2]
[386546695,1758377440432,-500.0,0.00020773,2]
[386546697,1758377440441,-500.0,0.00020773,2]
[386546699,1758377440451,-500.0,0.00020773,2]
[386546701,1758377440460,-500.0,0.00020773,2]
[386546703,1758377440469,-500.0,0.00020773,2]
[386546705,1758377440480,-437.0,0.00020773,2]
[386546707,1758377440489,-151.0,0.00020773,2]
[386546709,1758377440498,-151.0,0.00020773,2]
[386546711,1758377440508,-151.0,0.00020773,2]
[386546713,1758377440517,-151.0,0.00020774,2]
[386546715,1758377440527,-500.0,0.00020774,2]
[386546717,1758377440537,-154.75225701,0.00020775,2]
[386546719,1758377440547,-151.0,0.00020775,2]
[386546721,1758377440556,-151.0,0.00020775,2]
[386546723,1758377440566,-488.45931029,0.00020775,2]
[386546725,1758377440576,-480.0,0.00020775,2]
[386546727,1758377440586,-480.0,0.00020775,2]
[386546729,1758377440595,-480.0,0.00020775,2]
[386546730,1758377440605,-480.0,0.00020775,2]
[386546732,1758377440615,-497.69115979,0.00020775,2]
[386546734,1758377440624,-480.0,0.00020775,2]
[386546736,1758377440634,-483.98165616,0.00020775,2]
[386546738,1758377440643,-480.0,0.00020775,2]
[386546740,1758377440653,-480.0,0.00020775,2]
[386546742,1758377440663,-491.45,0.00020775,2]
[386546744,1758377440673,-480.0,0.00020775,2]
[386546746,1758377440682,-480.0,0.00020775,2]
[386546748,1758377440692,-526.18,0.00020775,2]
[386546750,1758377440701,-297.26671355,0.00020775,2]
[386546752,1758377440710,-964.19,0.00020775,2]
[386546754,1758377440720,-480.0,0.00020775,2]
[386546756,1758377440729,-173.57874215,0.00020775,2]
[386546758,1758377440739,-151.0,0.00020775,2]
[386546761,1758377440753,-151.0,0.00020775,2]
[386546763,1758377440762,-167.13528097,0.00020775,2]
[386546764,1758377440772,-480.0,0.00020775,2]
[386546766,1758377440781,-480.0,0.00020775,2]
[386546769,1758377440791,-480.0,0.00020775,2]
[386546770,1758377440800,-480.0,0.00020777,2]
[386546773,1758377440810,-480.0,0.00020777,2]
[386546774,1758377440819,-480.0,0.00020777,2]
[386546776,1758377440828,-480.0,0.00020777,2]
[386546779,1758377440840,-483.17486433,0.00020777,2]
[386546781,1758377440852,-480.0,0.00020777,2]
[386546783,1758377440861,-465.09751842,0.00020777,2]
[386546785,1758377440870,-480.0,0.00020777,2]
[386546786,1758377440881,-480.0,0.00020777,2]
[386546788,1758377440890,-480.0,0.00020777,2]
[386546791,1758377440900,-483.1637147,0.00020777,2]
[386546793,1758377440910,-486.26986262,0.00020777,2]
[386546795,1758377440920,-488.59203603,0.00020777,2]
[386546797,1758377440930,-480.0,0.00020777,2]
[386546799,1758377440940,-480.0,0.00020777,2]
[386546801,1758377440950,-907.78,0.00020777,2]
[386546803,1758377440959,-480.0,0.00020777,2]
[386546805,1758377440969,-480.0,0.00020777,2]
[386546807,1758377440978,-480.0,0.00020777,2]
[386546809,1758377440987,-480.0,0.00020777,2]
[386546811,1758377440996,-480.0,0.00020777,2]
[386546813,1758377441006,-480.0,0.00020777,2]
[386546815,1758377441015,-480.0,0.00020777,2]
[386546816,1758377441024,-534.23785816,0.00020777,2]
[386546818,1758377441033,-480.0,0.00020777,2]
[386546820,1758377441043,-1000.0,0.00020777,2]
[386546822,1758377441053,-480.0,0.00020777,2]
[386546824,1758377441062,-480.0,0.00020777,2]
[386546826,1758377441072,-368.68644481,0.00020777,2]
[386546829,1758377441081,-480.0,0.00020777,2]
[386546830,1758377441091,-480.0,0.00020777,2]
[386546833,1758377441100,-480.0,0.00020777,2]
[386546835,1758377441109,-480.0,0.00020777,2]
[386546837,1758377441119,-480.0,0.00020777,2]
[386546839,1758377441129,-480.0,0.00020777,2]
[386546840,1758377441138,-480.0,0.00020777,2]
[386546842,1758377441147,-480.0,0.00020777,2]
[386546845,1758377441157,-492.65874402,0.00020777,2]
[386546846,1758377441166,-480.0,0.00020777,2]
[386546849,1758377441176,-480.0,0.00020777,2]
[386546850,1758377441185,-480.0,0.00020777,2]
[386546852,1758377441195,-480.0,0.00020777,2]
[386546854,1758377441205,-480.0,0.00020777,2]
[386546857,1758377441215,-480.0,0.00020777,2]
[386546858,1758377441224,-480.0,0.00020777,2]
[386546860,1758377441234,-234.57582968,0.00020777,2]
[386546862,1758377441245,-480.0,0.00020777,2]
[386546872,1758377441333,-480.0,0.00020777,2]
[386546874,1758377441344,-480.0,0.00020777,2]
[386546875,1758377441353,-480.0,0.00020777,2]
[386546877,1758377441364,-480.0,0.00020777,2]
[386546878,1758377441373,-484.35572372,0.00020777,2]
[386546879,1758377441382,-489.59160379,0.00020777,2]
[386546880,1758377441392,-172.17624618,0.00020777,2]
[386546881,1758377441402,-480.0,0.00020777,2]
[386546882,1758377441412,-485.18998501,0.00020777,2]
[386546883,1758377441423,-369.4033403,0.00020777,2]
[386546884,1758377441432,-480.0,0.00020777,2]
[386546885,1758377441441,-480.0,0.00020777,2]
[386546886,1758377441452,-480.0,0.00020777,2]
[386546887,1758377441462,-480.0,0.00020777,2]
[386546888,1758377441471,-480.0,0.00020777,2]
[386546889,1758377441481,-388.12424925,0.00020777,2]
[386546890,1758377441490,-480.0,0.00020777,2]
[386546891,1758377441499,-480.0,0.00020777,2]
[386546892,1758377441508,-480.0,0.00020777,2]
[386546893,1758377441520,-480.0,0.00020777,2]
[386546894,1758377441529,-480.0,0.00020777,2]
[386546895,1758377441538,-480.0,0.00020777,2]
[386546896,1758377441548,-494.76533007,0.00020777,2]
[386546897,1758377441557,-480.0,0.00020777,2]
[386546898,1758377441567,-591.5,0.00020777,2]
[386546899,1758377441576,-480.0,0.00020777,2]
[386546900,1758377441585,-480.0,0.00020777,2]
[386546901,1758377441595,-480.0,0.00020777,2]
[386546902,1758377441604,-408.17137678,0.00020777,2]
[386546903,1758377441614,-480.0,0.00020777,2]
[386546904,1758377441624,-482.41141353,0.00020777,2]
[386546905,1758377441633,-480.0,0.00020777,2]
[386546906,1758377441643,-480.0,0.00020777,2]
[386546907,1758377441652,-480.0,0.00020777,2]
[386546908,1758377441661,-480.0,0.00020777,2]
[386546909,1758377441670,-480.0,0.00020777,2]
[386546910,1758377441679,-480.0,0.00020777,2]
[386546911,1758377441688,-478.5,0.00020777,2]
[386546912,1758377441697,-485.52956842,0.00020777,2]
[386546913,1758377441707,-480.0,0.00020777,2]
[386546914,1758377441716,-480.0,0.00020777,2]
[386546915,1758377441725,-480.0,0.00020777,2]
[386546916,1758377441734,-480.0,0.00020777,2]